fUSD/lending_fUSD_20260224
["ID","MTS","AMOUNT","RATE_DAILY","PERIOD"]
[406528440,1771914633438,-628.24668109,0.00013018,2]
[406528441,1771914633451,-106.01028961,0.00013018,2]
[406528442,1771914633460,-147.90394875,0.00013018,2]
[406528444,1771914638545,-586.35302195,0.00013018,2]
[406528445,1771914638554,-734.2569707,0.00013018,2]
[406528446,1771914638564,-648.41049538,0.00013018,2]
[406528447,1771914638575,-85.84647532,0.00013018,2]
[406528448,1771914638585,-605.13879252,0.00013018,2]
[406528449,1771914638596,-129.11817818,0.00013018,2]
[406528450,1771914638606,-768.08907424,0.00013018,2]
[406528452,1771914638615,-768.08907424,0.00013018,2]
[406528454,1771914638625,-768.08907424,0.00013018,2]
[406528456,1771914638635,-768.08907424,0.00013018,2]
[406528458,1771914638645,-768.08907424,0.00013018,2]
[406528460,1771914638655,-768.08907424,0.00013018,2]
[406528461,1771914638664,-768.08907424,0.00013018,2]
[406528463,1771914638673,-768.08907424,0.00013018,2]
[406528465,1771914638684,-768.08907424,0.00013018,2]
[406528467,1771914638693,-768.08907424,0.00013018,2]
[406528468,1771914638703,-768.08907424,0.00013018,2]
[406528469,1771914638713,-768.08907424,0.00013018,2]
[406528470,1771914638724,-768.08907424,0.00013018,2]
[406528471,1771914638734,-768.08907424,0.00013018,2]
[406528473,1771914638743,-768.08907424,0.00013018,2]
[406528474,1771914638752,-768.08907424,0.00013018,2]
[406528475,1771914638762,-768.08907424,0.00013018,2]
[406528476,1771914638772,-500.0,0.00013018,2]
[406528477,1771914638781,-449.76526678,0.00013018,2]
[406528478,1771914638791,-212.30913024,0.00013018,2]
[406528479,1771914638800,-20934.38385801,0.00013019,2]
[406528480,1771914638815,-968.12794408,0.00013019,2]
[406528481,1771914638826,-916.51199559,0.00013019,2]
[406528482,1771914638837,-1050.0,0.00013019,2]
[406528483,1771914638849,-1000.0,0.00013019,2]
[406528484,1771914638861,-487.92162087,0.00013019,2]
[406528488,1771914640479,-2094.6244665,0.00012973,2]
[406528489,1771914640493,-1266.5796,0.00012973,2]
[406528490,1771914640708,-12558.5923689,0.00012973,2]
[406528491,1771914640719,-2261431.65785466,0.00013019,2]
[406528492,1771914640987,-597.032921,0.00013019,2]
[406528528,1771914643531,-634.43867938,0.00013019,2]
[406528616,1771914646219,-1183.72033041,0.00012973,2]
[406528617,1771914646392,-394.42785063,0.00012973,2]
[406528618,1771914646404,-533.1900028,0.00012973,2]
[406528621,1771914646923,-1980.96955014,0.00012973,2]
[406528622,1771914646935,-3389.13106778,0.00012973,2]
[406528623,1771914646944,-6275.12827249,0.00013019,2]
[406528690,1771914797356,162.96032501,0.00013,7]
[406528706,1771914806260,-2000.0,0.00012759,2]
[406528784,1771914950882,175.99,9.736e-05,2]
[406528821,1771915025075,-1600.0,0.00012281,2]
[406528822,1771915025098,-250.0,0.00012286,2]
[406528823,1771915025120,-20292.07,0.00012291,2]
[406528824,1771915025142,-1001.374,0.00012759,2]
[406528825,1771915025165,-205.161,0.00012759,2]
[406528826,1771915025187,-29623.49028689,0.000128,2]
[406528827,1771915025209,-150.0,0.00012817,2]
[406528828,1771915025232,-1200.0,0.00012818,2]
[406528829,1771915025254,-480.14302306,0.00012819,2]
[406528830,1771915025274,-338.66144278,0.00012819,2]
[406528831,1771915025296,-6452.37159652,0.00012819,2]
[406528832,1771915025317,-161.04974185,0.00012819,2]
[406528833,1771915025338,-716.0,0.00012877,2]
[406528834,1771915025363,-137529.6789089,0.0001289,2]
[406528835,1771915036152,500.0,0.000108,2]
[406528846,1771915285879,3834.0,0.00012,10]
[406528855,1771915529696,-500.0,0.00011862,2]
[406528869,1771915831446,-600.0,0.00011999,2]
[406528870,1771915831455,-300.0,0.00011999,2]
[406528871,1771915831465,-1200.0,0.00011999,2]
[406528872,1771915831474,-1082.71860529,0.00012,2]
[406528873,1771915831523,-176.01139471,0.00012,2]
[406528874,1771915831533,-5546.73355679,0.00012,2]
[406528875,1771915831542,-200.0,0.00012016,2]
[406528876,1771915831552,-150.0,0.00012035,2]
[406528877,1771915831562,-166.66,0.00012212,2]
[406528878,1771915831572,-6938.24720908,0.00012419,2]
[406528879,1771915831582,-448.24817944,0.00012419,2]
[406528880,1771915831592,-18223.68084412,0.00012419,2]
[406528881,1771915831602,-2401.099,0.00012465,2]
[406528882,1771915831612,-164.129,0.00012465,2]
[406528883,1771915831622,-284.9132918,0.00012509,2]
[406528884,1771915831632,-500.0,0.00012518,2]
[406528885,1771915831641,-227.69717457,0.00012518,2]
[406528886,1771915831650,-564.06780037,0.00012518,2]
[406528887,1771915831659,-500.0,0.00012518,2]
[406528888,1771915831669,-286.15634363,0.00012518,2]
[406528889,1771915831679,-500.0,0.00012518,2]
[406528890,1771915831688,-500.0,0.00012518,2]
[406528891,1771915831697,-500.0,0.00012518,2]
[406528892,1771915831706,-500.0,0.00012518,2]
[406528893,1771915831716,-165.56897386,0.00012518,2]
[406528894,1771915831725,-191.07821722,0.00012518,2]
[406528895,1771915831735,-500.0,0.00012518,2]
[406528897,1771915831745,-500.0,0.00012518,2]
[406528899,1771915831755,-500.0,0.00012518,2]
[406528901,1771915831764,-500.0,0.00012518,2]
[406528902,1771915831773,-500.0,0.00012518,2]
[406528903,1771915831783,-500.0,0.00012518,2]
[406528904,1771915831793,-500.0,0.00012518,2]
[406528905,1771915831802,-166.72118877,0.00012518,2]
[406528907,1771915831812,-500.0,0.00012518,2]
[406528909,1771915831822,-500.0,0.00012518,2]
[406528911,1771915831831,-500.0,0.00012518,2]
[406528913,1771915831840,-500.0,0.00012518,2]
[406528915,1771915831850,-500.0,0.00012518,2]
[406528916,1771915831859,-500.0,0.00012518,2]
[406528917,1771915831868,-500.0,0.00012518,2]
[406528918,1771915831878,-500.0,0.00012518,2]
[406528919,1771915831887,-500.0,0.00012518,2]
[406528920,1771915831897,-500.0,0.00012518,2]
[406528921,1771915831906,-500.0,0.00012518,2]
[406528922,1771915831915,-500.0,0.00012518,2]
[406528923,1771915831924,-500.0,0.00012518,2]
[406528924,1771915831933,-500.0,0.00012518,2]
[406528925,1771915831943,-500.0,0.00012518,2]
[406528926,1771915831952,-500.0,0.00012518,2]
[406528927,1771915831961,-500.0,0.00012518,2]
[406528928,1771915831970,-500.0,0.00012518,2]
[406528929,1771915831979,-500.0,0.00012518,2]
[406528930,1771915831988,-500.0,0.00012518,2]
[406528931,1771915831997,-500.0,0.00012518,2]
[406528932,1771915832006,-500.0,0.00012518,2]
[406528933,1771915832016,-500.0,0.00012518,2]
[406528934,1771915832025,-500.0,0.00012518,2]
[406528935,1771915832034,-500.0,0.00012518,2]
[406528936,1771915832047,-500.0,0.00012518,2]
[406528937,1771915832056,-500.0,0.00012518,2]
[406528938,1771915832066,-500.0,0.00012518,2]
[406528939,1771915832075,-500.0,0.00012518,2]
[406528940,1771915832086,-500.0,0.00012518,2]
[406528941,1771915832095,-500.0,0.00012518,2]
[406528942,1771915832104,-448.82371729,0.00012518,2]
[406528943,1771915832116,-500.0,0.00012518,2]
[406528944,1771915832125,-500.0,0.00012518,2]
[406528945,1771915832135,-500.0,0.00012518,2]
[406528946,1771915832144,-500.0,0.00012518,2]
[406528947,1771915832153,-500.0,0.00012518,2]
[406528948,1771915832162,-500.0,0.00012518,2]
[406528949,1771915832171,-500.0,0.00012518,2]
[406528950,1771915832181,-500.0,0.00012518,2]
[406528951,1771915832190,-500.0,0.00012518,2]
[406528952,1771915832199,-500.0,0.00012518,2]
[406528953,1771915832208,-500.0,0.00012518,2]
[406528954,1771915832217,-500.0,0.00012518,2]
[406528955,1771915832226,-500.0,0.00012518,2]
[406528956,1771915832236,-500.0,0.00012518,2]
[406528957,1771915832245,-150.0,0.00012518,2]
[406528958,1771915832255,-1380411.10184545,0.00012519,2]
[406528959,1771915832267,-194950.53942625,0.00012519,2]
[406528960,1771915832277,-200901.47180728,0.00012519,2]
[406528961,1771915832289,-213154.13205396,0.00012519,2]
[406528962,1771915832299,-1254.41808677,0.00012519,2]
[406528963,1771915832314,-1509328.33678029,0.00012519,2]
[406528964,1771915832323,-2500.0,0.00012519,2]
[406528965,1771915832332,-1426.21591727,0.00012519,2]
[406528966,1771915832341,-18223.68084409,0.0001255,2]
[406528967,1771915832351,-3664.0,0.00012603,2]
[406528968,1771915832360,-166.66,0.00012615,2]
[406528969,1771915832370,-4999.99,0.00012618,2]
[406528970,1771915832379,-2107.83,0.00012618,2]
[406528971,1771915832389,-9999.99,0.00012618,2]
[406528972,1771915832398,-9999.99,0.00012618,2]
[406528973,1771915832407,-32875.3991,0.00012619,2]
[406528974,1771915832417,-232.9084823,0.00012619,2]
[406528975,1771915832426,-569.57974708,0.00012619,2]
[406528976,1771915832435,-1205.22,0.00012619,2]
[406528977,1771915832444,-13115.64,0.00012619,2]
[406528978,1771915832453,-1208.24,0.00012619,2]
[406528979,1771915832462,-29999.99,0.00012619,2]
[406528980,1771915832472,-9999.99,0.00012619,2]
[406528981,1771915832481,-348.0,0.00012673,2]
[406528982,1771915832490,-18223.68084409,0.00012681,2]
[406528983,1771915832499,-150.99,0.00012689,2]
[406528984,1771915832508,-999.99,0.00012689,2]
[406528985,1771915832517,-9999.99,0.00012689,2]
[406528986,1771915832526,-9999.99,0.00012689,2]
[406528987,1771915832536,-150.99,0.00012689,2]
[406528988,1771915832546,-179612.91,0.00012689,2]
[406528989,1771915832554,-9999.99,0.0001269,2]
[406528990,1771915832563,-429.68,0.0001269,2]
[406528991,1771915832573,-499.99,0.0001269,2]
[406528992,1771915832582,-764.0,0.0001269,2]
[406528993,1771915832591,-319.0,0.00012699,2]
[406528994,1771915832599,-151.0,0.00012711,2]
[406528995,1771915832608,-151.0,0.00012711,2]
[406528996,1771915832618,-151.0,0.00012711,2]
[406528997,1771915832626,-151.0,0.00012711,2]
[406528998,1771915832635,-151.0,0.00012711,2]
[406528999,1771915832645,-151.0,0.00012711,2]
[406529000,1771915832653,-151.0,0.00012711,2]
[406529001,1771915832663,-151.0,0.00012711,2]
[406529002,1771915832672,-151.0,0.00012711,2]
[406529003,1771915832681,-151.0,0.00012711,2]
[406529004,1771915832690,-151.0,0.00012711,2]
[406529005,1771915832698,-151.0,0.00012711,2]
[406529006,1771915832708,-151.0,0.00012711,2]
[406529007,1771915832717,-185.14954898,0.00012711,2]
[406529008,1771915832727,-151.0,0.00012711,2]
[406529009,1771915832736,-151.0,0.00012711,2]
[406529010,1771915832745,-151.0,0.00012711,2]
[406529011,1771915832754,-151.0,0.00012711,2]
[406529012,1771915832764,-151.0,0.00012711,2]
[406529013,1771915832773,-197.7685412,0.00012711,2]
[406529014,1771915832783,-1532.79,0.00012718,2]
[406529015,1771915832792,-498.0,0.00012721,2]
[406529016,1771915832805,-266.0,0.00012747,2]
[406529017,1771915832814,-243.0,0.00012786,2]
[406529018,1771915832823,-1000.0,0.0001279,2]
[406529019,1771915832832,-294645.768,0.0001279,2]
[406529020,1771915832842,-500.0,0.00012792,2]
[406529021,1771915832852,-18223.68084409,0.00012812,2]
[406529022,1771915832861,-10000.0,0.00012819,2]
[406529023,1771915832870,-4745.19745271,0.00012842,2]
[406529024,1771915832879,-403.0,0.00012866,2]
[406529025,1771915832888,-60992.06095889,0.0001289,2]
[406529026,1771915832898,-417.0,0.00012891,2]
[406529027,1771915832907,-1474.49137359,0.000129,3]
[406529028,1771915832916,-2798.98274721,0.000129,3]
[406529029,1771915832926,-514.0,0.00012908,2]
[406529030,1771915832935,-1913.0,0.00012934,2]
[406529031,1771915832945,-18223.68084409,0.00012943,2]
[406529032,1771915832954,-1532.79,0.00012992,2]
[406529033,1771915832964,-4690.9743752,0.00013018,2]
[406529034,1771915832973,-12952.4658786,0.00013018,2]
[406529035,1771915832982,-166.66,0.00013018,2]
[406529036,1771915832993,-438789.7362675,0.00013019,2]
[406529037,1771915833003,-200.0,0.00013019,2]
[406529038,1771915833012,-500.0,0.00013066,2]
[406529039,1771915833021,-500.97567973,0.00013073,2]
[406529040,1771915833030,-229.14998056,0.00013073,2]
[406529041,1771915833043,-500.0,0.00013073,2]
[406529042,1771915833052,-500.0,0.00013073,2]
[406529043,1771915833063,-500.44619551,0.00013073,2]
[406529044,1771915833072,-547.04532951,0.00013073,2]
[406529045,1771915833082,-500.0,0.00013073,2]
[406529046,1771915833091,-500.0,0.00013073,2]
[406529047,1771915833101,-294.26200516,0.00013073,2]
[406529048,1771915833111,-500.0,0.00013073,2]
[406529049,1771915833121,-500.0,0.00013073,2]
[406529050,1771915833130,-506.38080207,0.00013073,2]
[406529051,1771915833141,-510.04817036,0.00013073,2]
[406529052,1771915833150,-500.0,0.00013073,2]
[406529053,1771915833160,-545.1706455,0.00013073,2]
[406529054,1771915833169,-572.49316641,0.00013073,2]
[406529055,1771915833178,-500.0,0.00013073,2]
[406529056,1771915833188,-504.73673885,0.00013073,2]
[406529057,1771915833197,-500.0,0.00013073,2]
[406529058,1771915833206,-204.76945981,0.00013073,2]
[406529059,1771915833216,-500.0,0.00013073,2]
[406529060,1771915833225,-502.60687673,0.00013073,2]
[406529061,1771915833234,-151.0,0.00013082,2]
[406529062,1771915833244,-158.772003,0.00013082,2]
[406529063,1771915833253,-158.772003,0.00013082,2]
[406529064,1771915833262,-158.772003,0.00013082,2]
[406529065,1771915833272,-158.772003,0.00013082,2]
[406529066,1771915833282,-170.43,0.000131,2]
[406529067,1771915833291,-308.3563393,0.00013114,2]
[406529068,1771915833301,-500.0,0.0001312,2]
[406529069,1771915833310,-500.0,0.0001312,2]
[406529070,1771915833320,-500.0,0.0001312,2]
[406529071,1771915833330,-500.0,0.0001312,2]
[406529072,1771915833340,-500.0,0.0001312,2]
[406529073,1771915833349,-500.0,0.0001312,2]
[406529074,1771915833359,-503.22031397,0.0001312,2]
[406529075,1771915833368,-500.0,0.0001312,2]
[406529076,1771915833377,-500.0,0.0001312,2]
[406529077,1771915833387,-500.0,0.0001312,2]
[406529078,1771915833396,-500.0,0.0001312,2]
[406529079,1771915833406,-500.0,0.0001312,2]
[406529080,1771915833415,-502.83737335,0.0001312,2]
[406529081,1771915833424,-665.83159517,0.0001312,2]
[406529082,1771915833433,-500.0,0.0001312,2]
[406529083,1771915833443,-500.0,0.0001312,2]
[406529084,1771915833452,-500.0,0.0001312,2]
[406529085,1771915833461,-500.0,0.0001312,2]
[406529086,1771915833471,-503.83434134,0.0001312,2]
[406529087,1771915833481,-500.0,0.0001312,2]
[406529088,1771915833490,-500.0,0.0001312,2]
[406529089,1771915833499,-500.0,0.0001312,2]
[406529090,1771915833508,-500.0,0.0001312,2]
[406529091,1771915833518,-500.0,0.0001312,2]
[406529092,1771915833527,-500.0,0.0001312,2]
[406529093,1771915833536,-500.0,0.0001312,2]
[406529094,1771915833547,-500.0,0.0001312,2]
[406529095,1771915833556,-500.0,0.0001312,2]
[406529096,1771915833566,-500.0,0.0001312,2]
[406529097,1771915833575,-500.0,0.0001312,2]
[406529098,1771915833584,-500.0,0.0001312,2]
[406529099,1771915833593,-500.0,0.0001312,2]
[406529100,1771915833602,-500.0,0.0001312,2]
[406529101,1771915833612,-500.0,0.0001312,2]
[406529102,1771915833621,-1845.37,0.00013171,2]
[406529103,1771915833631,-420.0,0.00013172,2]
[406529104,1771915833640,-250.0,0.00013199,2]
[406529105,1771915833649,-1680.0,0.00013199,2]
[406529106,1771915833660,-1532.79,0.00013266,2]
[406529107,1771915833669,-1426.21591721,0.00013288,2]
[406529108,1771915833884,-255.46,0.00013308,2]
[406529109,1771915833893,-500.0,0.0001334,2]
[406529110,1771915833903,-166.66,0.00013421,2]
[406529111,1771915833913,-3240.0,0.00013425,2]
[406529112,1771915833922,-1000.0,0.00013492,2]
[406529113,1771915833931,-569.57974704,0.00013499,2]
[406529114,1771915833940,-1532.79,0.0001354,2]
[406529115,1771915833949,-14928.40764489,0.0001358,2]
[406529116,1771915833958,-255.0,0.00013607,2]
[406529117,1771915833968,-500.0,0.00013614,2]
[406529118,1771915833977,-186.01457246,0.00013621,2]
[406529119,1771915833987,-504.64062165,0.00013621,2]
[406529120,1771915833996,-503.13992045,0.00013621,2]
[406529121,1771915834006,-1000.0,0.00013621,2]
[406529122,1771915834015,-1006.41000984,0.00013621,2]
[406529123,1771915834024,-1008.95319751,0.00013621,2]
[406529124,1771915834035,-1087.74026188,0.00013621,2]
[406529125,1771915834048,-1000.0,0.00013621,2]
[406529126,1771915834057,-644.49133237,0.00013621,2]
[406529127,1771915834066,-512.45638108,0.00013621,2]
[406529128,1771915834076,-500.0,0.00013698,2]
[406529129,1771915834086,-500.0,0.00013698,2]
[406529130,1771915834094,-500.0,0.00013698,2]
[406529131,1771915834104,-500.0,0.00013698,2]
[406529132,1771915834114,-500.0,0.00013698,2]
[406529133,1771915834125,-500.0,0.00013698,2]
[406529134,1771915834134,-500.0,0.00013698,2]
[406529135,1771915834144,-500.0,0.00013698,2]
[406529136,1771915834153,-500.0,0.00013698,2]
[406529137,1771915834162,-500.0,0.00013698,2]
[406529138,1771915834172,-500.0,0.00013698,2]
[406529139,1771915834182,-500.0,0.00013698,2]
[406529140,1771915834191,-500.0,0.00013698,2]
[406529141,1771915834200,-500.0,0.00013698,2]
[406529142,1771915834209,-500.0,0.00013698,2]
[406529143,1771915834220,-500.0,0.00013698,2]
[406529144,1771915834229,-500.0,0.00013698,2]
[406529145,1771915834238,-500.0,0.00013698,2]
[406529146,1771915834248,-500.0,0.00013698,2]
[406529147,1771915834257,-500.0,0.00013698,2]
[406529148,1771915834266,-500.0,0.00013698,2]
[406529149,1771915834276,-500.0,0.00013698,2]
[406529150,1771915834285,-500.0,0.00013698,2]
[406529151,1771915834295,-231.72,0.00013698,2]
[406529152,1771915834305,-500.0,0.00013698,2]
[406529153,1771915834316,-329.04605058,0.00013698,2]
[406529154,1771915834325,-500.0,0.00013698,2]
[406529155,1771915834335,-500.0,0.00013698,2]
[406529156,1771915834344,-500.0,0.00013698,2]
[406529157,1771915834354,-500.0,0.00013698,2]
[406529158,1771915834363,-500.0,0.00013698,2]
[406529159,1771915834373,-502.43319392,0.00013698,2]
[406529160,1771915834383,-189.90244216,0.00013698,2]
[406529161,1771915834392,-500.0,0.00013698,2]
[406529162,1771915834401,-500.0,0.00013698,2]
[406529163,1771915834410,-500.0,0.00013698,2]
[406529164,1771915834419,-500.0,0.00013698,2]
[406529165,1771915834428,-500.0,0.00013698,2]
[406529166,1771915834437,-500.0,0.00013698,2]
[406529167,1771915834446,-500.0,0.00013698,2]
[406529168,1771915834456,-500.0,0.00013698,2]
[406529169,1771915834465,-500.0,0.00013698,2]
[406529170,1771915834474,-500.0,0.00013698,2]
[406529171,1771915834483,-500.0,0.00013698,2]
[406529172,1771915834493,-500.0,0.00013698,2]
[406529173,1771915834502,-500.0,0.00013698,2]
[406529174,1771915834511,-500.0,0.00013698,2]
[406529175,1771915834521,-500.0,0.00013698,2]
[406529176,1771915834530,-500.0,0.00013698,2]
[406529177,1771915834539,-500.0,0.00013698,2]
[406529178,1771915834548,-500.0,0.00013698,2]
[406529179,1771915834558,-500.0,0.00013698,2]
[406529180,1771915834567,-500.0,0.00013698,2]
[406529181,1771915834576,-500.0,0.00013698,2]
[406529182,1771915834585,-500.0,0.00013698,2]
[406529183,1771915834594,-500.0,0.00013698,2]
[406529184,1771915834604,-500.0,0.00013698,2]
[406529185,1771915834613,-500.0,0.00013698,2]
[406529186,1771915834622,-500.0,0.00013698,2]
[406529187,1771915834631,-500.0,0.00013698,2]
[406529188,1771915834640,-500.0,0.00013698,2]
[406529189,1771915834649,-500.0,0.00013698,2]
[406529190,1771915834659,-286.16513184,0.00013698,2]
[406529191,1771915834667,-500.0,0.00013698,2]
[406529192,1771915834677,-500.0,0.00013698,2]
[406529193,1771915834686,-500.0,0.00013698,2]
[406529194,1771915834695,-500.0,0.00013698,2]
[406529195,1771915834704,-500.0,0.00013698,2]
[406529196,1771915834713,-500.0,0.00013698,2]
[406529197,1771915834722,-500.0,0.00013698,2]
[406529198,1771915834731,-500.0,0.00013698,2]
[406529199,1771915834740,-500.0,0.00013698,2]
[406529200,1771915834749,-500.0,0.00013698,2]
[406529201,1771915834759,-500.0,0.00013698,2]
[406529202,1771915834767,-500.0,0.00013698,2]
[406529203,1771915834776,-500.0,0.00013698,2]
[406529204,1771915834785,-500.0,0.00013698,2]
[406529205,1771915834794,-604.80928583,0.00013698,2]
[406529206,1771915834803,-500.0,0.00013698,2]
[406529207,1771915834812,-500.0,0.00013698,2]
[406529208,1771915834821,-500.0,0.00013698,2]
[406529209,1771915834830,-500.0,0.00013698,2]
[406529210,1771915834839,-500.0,0.00013698,2]
[406529211,1771915834848,-500.0,0.00013698,2]
[406529212,1771915834857,-500.0,0.00013698,2]
[406529213,1771915834866,-500.0,0.00013698,2]
[406529214,1771915834875,-500.0,0.00013698,2]
[406529215,1771915834884,-500.0,0.00013698,2]
[406529216,1771915834893,-500.0,0.00013698,2]
[406529217,1771915834903,-500.0,0.00013698,2]
[406529218,1771915834912,-500.0,0.00013698,2]
[406529219,1771915834921,-500.0,0.00013698,2]
[406529220,1771915834930,-500.0,0.00013698,2]
[406529221,1771915834940,-500.0,0.00013698,2]
[406529222,1771915834950,-500.0,0.00013698,2]
[406529223,1771915834959,-500.0,0.00013698,2]
[406529224,1771915834969,-500.0,0.00013698,2]
[406529225,1771915834978,-500.0,0.00013698,2]
[406529226,1771915834987,-500.0,0.00013698,2]
[406529227,1771915834996,-496.78099408,0.00013698,2]
[406529228,1771915835005,-500.0,0.00013698,2]
[406529229,1771915835014,-500.0,0.00013698,2]
[406529230,1771915835023,-500.0,0.00013698,2]
[406529231,1771915835033,-500.0,0.00013698,2]
[406529232,1771915835042,-500.0,0.00013698,2]
[406529233,1771915835053,-500.0,0.00013698,2]
[406529234,1771915835062,-500.0,0.00013698,2]
[406529235,1771915835071,-500.0,0.00013698,2]
[406529236,1771915835080,-500.0,0.00013698,2]
[406529237,1771915835089,-500.0,0.00013698,2]
[406529238,1771915835098,-500.0,0.00013698,2]
[406529239,1771915835107,-180.41605174,0.00013698,2]
[406529240,1771915835118,-500.0,0.00013698,2]
[406529241,1771915835127,-648.89211194,0.00013698,2]
[406529242,1771915835136,-500.0,0.00013698,2]
[406529243,1771915835145,-500.0,0.00013698,2]
[406529244,1771915835154,-500.0,0.00013698,2]
[406529245,1771915835164,-500.0,0.00013698,2]
[406529246,1771915835174,-500.0,0.00013698,2]
[406529247,1771915835183,-500.0,0.00013698,2]
[406529248,1771915835191,-500.0,0.00013698,2]
[406529249,1771915835201,-500.0,0.00013698,2]
[406529250,1771915835210,-500.0,0.00013698,2]
[406529251,1771915835219,-500.0,0.00013698,2]
[406529252,1771915835228,-500.0,0.00013698,2]
[406529253,1771915835237,-500.0,0.00013698,2]
[406529254,1771915835246,-500.0,0.00013698,2]
[406529255,1771915835255,-500.0,0.00013698,2]
[406529256,1771915835265,-500.0,0.00013698,2]
[406529257,1771915835274,-500.0,0.00013698,2]
[406529258,1771915835283,-500.0,0.00013698,2]
[406529259,1771915835292,-500.0,0.00013698,2]
[406529260,1771915835301,-500.0,0.00013698,2]
[406529261,1771915835310,-500.0,0.00013698,2]
[406529262,1771915835319,-500.0,0.00013698,2]
[406529263,1771915835328,-500.0,0.00013698,2]
[406529264,1771915835337,-500.0,0.00013698,2]
[406529265,1771915835346,-500.0,0.00013698,2]
[406529266,1771915835355,-500.0,0.00013698,2]
[406529267,1771915835364,-500.0,0.00013698,2]
[406529268,1771915835374,-500.0,0.00013698,2]
[406529269,1771915835383,-500.0,0.00013698,2]
[406529270,1771915835392,-500.0,0.00013698,2]
[406529271,1771915835401,-500.0,0.00013698,2]
[406529272,1771915835411,-500.0,0.00013698,2]
[406529273,1771915835420,-500.0,0.00013698,2]
[406529274,1771915835429,-500.0,0.00013698,2]
[406529275,1771915835438,-500.0,0.00013698,2]
[406529276,1771915835447,-433.85931145,0.00013698,2]
[406529277,1771915835456,-500.0,0.00013698,2]
[406529278,1771915835465,-500.0,0.00013698,2]
[406529279,1771915835474,-500.0,0.00013698,2]
[406529280,1771915835483,-500.0,0.00013698,2]
[406529281,1771915835492,-500.0,0.00013698,2]
[406529282,1771915835501,-500.0,0.00013698,2]
[406529283,1771915835509,-500.0,0.00013698,2]
[406529284,1771915835518,-500.0,0.00013698,2]
[406529285,1771915835527,-500.0,0.00013698,2]
[406529286,1771915835536,-500.0,0.00013698,2]
[406529287,1771915835545,-500.0,0.00013698,2]
[406529288,1771915835554,-500.0,0.00013698,2]
[406529289,1771915835564,-500.0,0.00013698,2]
[406529290,1771915835573,-500.0,0.00013698,2]
[406529291,1771915835582,-500.0,0.00013698,2]
[406529292,1771915835591,-500.0,0.00013698,2]
[406529293,1771915835600,-500.0,0.00013698,2]
[406529294,1771915835609,-500.0,0.00013698,2]
[406529295,1771915835618,-500.0,0.00013698,2]
[406529296,1771915835627,-500.0,0.00013698,2]
[406529297,1771915835636,-500.0,0.00013698,2]
[406529298,1771915835645,-500.0,0.00013698,2]
[406529299,1771915835654,-500.0,0.00013698,2]
[406529300,1771915835663,-500.0,0.00013698,2]
[406529301,1771915835672,-500.0,0.00013698,2]
[406529302,1771915835682,-500.0,0.00013698,2]
[406529303,1771915835691,-500.0,0.00013698,2]
[406529304,1771915835699,-157.77016902,0.00013698,2]
[406529305,1771915835708,-500.0,0.00013698,2]
[406529306,1771915835717,-500.0,0.00013698,2]
[406529307,1771915835726,-500.0,0.00013698,2]
[406529308,1771915835735,-500.0,0.00013698,2]
[406529309,1771915835744,-121.14742464,0.00013698,2]